fUSD/lending_fUSD_20240613
["ID","MTS","AMOUNT","RATE_DAILY","PERIOD"]
[329379178,1718292720850,-1160.7,0.00028492,3]
[329379179,1718292720862,-500.0,0.00028492,3]
[329379180,1718292720874,-635.4,0.00028492,3]
[329379181,1718292720885,-984.58,0.00028492,3]
[329379182,1718292720897,-2101.74,0.00028492,3]
[329379183,1718292720928,-529.09,0.00028492,3]
[329379184,1718292720963,-1065.38,0.00028492,3]
[329379185,1718292720974,-2589.34,0.00028492,3]
[329379186,1718292720985,-3405.79,0.00028492,3]
[329379187,1718292721004,-789.36,0.00028492,3]
[329379188,1718292721021,-1078.35,0.00028492,3]
[329379189,1718292721037,-500.0,0.00028492,3]
[329379190,1718292721064,-500.0,0.00028492,3]
[329379191,1718292721076,-590.78,0.00028492,3]
[329379192,1718292721090,-558.80468129,0.00028492,3]
[329379193,1718292721107,-689.43,0.00028492,3]
[329379194,1718292721129,-628.08,0.00028492,3]
[329379195,1718292721142,-731.88,0.00028492,3]
[329379196,1718292721191,-500.0,0.00028492,3]
[329379197,1718292721208,-500.0,0.00028492,3]
[329379198,1718292721225,-539.27,0.00028492,3]
[329379199,1718292721238,-1216.69,0.00028492,3]
[329379200,1718292721265,-800.18,0.00028492,3]
[329379201,1718292721278,-1199.27,0.00028492,3]
[329379202,1718292721292,-1277.74,0.00028492,3]
[329379203,1718292721310,-1138.63,0.00028492,3]
[329379204,1718292721322,-500.0,0.00028492,3]
[329379205,1718292721335,-3406.93,0.00028492,3]
[329379206,1718292721383,-1350.88,0.00028492,3]
[329379207,1718292721421,-851.08,0.00028492,3]
[329379208,1718292721462,-947.08,0.00028492,3]
[329379209,1718292721524,-727.33,0.00028492,3]
[329379210,1718292721537,-505.2,0.00028492,3]
[329379211,1718292721563,-719.42,0.00028492,3]
[329379212,1718292721601,-1080.47,0.00028492,3]
[329379213,1718292721624,-2669.88,0.00028493,3]
[329379214,1718292721642,-857.41,0.00028493,3]
[329379215,1718292721674,-1143.43,0.00028493,3]
[329379216,1718292721703,-500.0,0.00028493,3]
[329379217,1718292721722,-1621.77,0.00028493,3]
[329379218,1718292721735,-674.54,0.00028493,3]
[329379219,1718292721748,-500.0,0.00028493,3]
[329379220,1718292721769,-178.21970292,0.00028493,2]
[329379221,1718292721781,-1174.3,0.00028493,3]
[329379222,1718292721816,-500.0,0.00028493,3]
[329379223,1718292721835,-500.0,0.00028493,3]
[329379224,1718292721853,-1348.57,0.00028493,3]
[329379225,1718292721875,-500.0,0.00028493,3]
[329379226,1718292721917,-500.0,0.00028493,3]
[329379227,1718292721940,-502.75,0.00028493,3]
[329379228,1718292721975,-535.86,0.00028493,3]
[329379229,1718292721992,-1384.42,0.00028493,3]
[329379230,1718292722009,-822.29,0.00028493,3]
[329379231,1718292722029,-521.6,0.00028493,3]
[329379232,1718292722040,-295.7120027,0.00028493,3]
[329379233,1718292722074,-500.0,0.00028493,3]
[329379234,1718292722088,-1073.92,0.00028493,3]
[329379235,1718292722114,-2065.58,0.00028493,3]
[329379236,1718292722125,-500.0,0.00028493,3]
[329379237,1718292722136,-649.62,0.00028493,3]
[329379238,1718292722149,-550.84,0.00028493,3]
[329379239,1718292722162,-500.0,0.00028493,3]
[329379240,1718292722181,-500.0,0.00028493,3]
[329379241,1718292722202,-928.65,0.00028493,3]
[329379242,1718292722215,-502.28,0.00028493,3]
[329379243,1718292722229,-691.98,0.00028493,3]
[329379244,1718292722252,-651.06,0.00028493,3]
[329379245,1718292722263,-500.0,0.00028493,3]
[329379246,1718292722280,-516.01,0.00028493,3]
[329379247,1718292722296,-1917.61,0.00028493,3]
[329379248,1718292722312,-1173.15,0.00028493,3]
[329379249,1718292722334,-500.0,0.00028493,3]
[329379250,1718292722371,-500.0,0.00028493,3]
[329379251,1718292722384,-1388.4,0.00028493,3]
[329379252,1718292722401,-719.63,0.00028493,3]
[329379253,1718292722432,-501.95976371,0.00028498,2]
[329379254,1718292722490,-154.24759554,0.00028555,2]
[329379255,1718292722512,-495.94955,0.0002857,3]
[329379256,1718292722524,-500.0,0.0002857,3]
[329379257,1718292722536,-349.85,0.0002857,3]
[329379258,1718292722549,-500.0,0.0002857,3]
[329379259,1718292722562,-500.0,0.0002857,3]
[329379260,1718292722576,-500.0,0.0002857,3]
[329379261,1718292722612,-500.0,0.0002857,3]
[329379262,1718292722623,-513.5,0.0002857,3]
[329379263,1718292722680,-500.0,0.0002857,3]
[329379264,1718292722712,-334.95,0.0002857,3]
[329379265,1718292722753,-500.0,0.0002857,3]
[329379266,1718292722784,-500.0,0.0002857,3]
[329379267,1718292722798,-500.0,0.0002857,3]
[329379268,1718292722815,-500.0,0.0002857,3]
[329379269,1718292722835,-500.0,0.0002857,3]
[329379270,1718292722855,-500.0,0.0002857,3]
[329379271,1718292722869,-500.0,0.0002857,3]
[329379272,1718292722896,-500.0,0.0002857,3]
[329379273,1718292722919,-500.0,0.0002857,3]
[329379274,1718292722939,-1306.39,0.0002857,3]
[329379275,1718292722959,-500.0,0.0002857,3]
[329379276,1718292722972,-235.64,0.0002857,3]
[329379277,1718292722997,-500.0,0.0002857,3]
[329379278,1718292723009,-500.0,0.0002857,3]
[329379279,1718292723019,-500.0,0.0002857,3]
[329379280,1718292723032,-500.0,0.0002857,3]
[329379281,1718292723071,-500.0,0.0002857,3]
[329379282,1718292723099,-500.0,0.0002857,3]
[329379283,1718292723113,-178.21970292,0.00028581,2]
[329379284,1718292723140,-1331.03925421,0.00028591,2]
[329379285,1718292723161,-152.1899555,0.00028623,2]
[329379286,1718292723220,-290.12695926,0.00028633,2]
[329379287,1718292723233,-165.47442074,0.00028634,2]
[329379288,1718292723247,-500.0,0.0002867,2]
[329379289,1718292723259,-700.0,0.0002867,2]
[329379290,1718292723280,-2800.0,0.0002867,2]
[329379291,1718292723292,-154.20874861,0.00028672,2]
[329379292,1718292723307,-178.21970292,0.00028697,2]
[329379293,1718292723319,-152.1899555,0.00028714,2]
[329379294,1718292723352,-178.21970292,0.00028721,2]
[329379295,1718292723373,-953.616187,0.00028741,2]
[329379296,1718292723389,-385.056803,0.00028741,2]
[329379297,1718292723410,-476.808093,0.00028741,2]
[329379298,1718292723421,-770.113606,0.00028741,2]
[329379299,1718292723460,-990.123474,0.00028741,2]
[329379300,1718292723488,-770.113606,0.00028741,2]
[329379301,1718292723499,-500.0,0.00028766,3]
[329379302,1718292723545,-500.0,0.00028766,3]
[329379303,1718292723576,-500.0,0.00028766,3]
[329379304,1718292723597,-500.0,0.00028766,3]
[329379305,1718292723615,-154.15,0.00028766,3]
[329379306,1718292723640,-724.51,0.00028766,3]
[329379307,1718292723651,-500.0,0.00028766,3]
[329379308,1718292723680,-500.0,0.00028766,3]
[329379309,1718292723711,-514.8,0.00028766,3]
[329379310,1718292723745,-500.0,0.00028766,3]
[329379311,1718292723756,-820.37,0.00028766,3]
[329379312,1718292723779,-1564.46,0.00028766,3]
[329379313,1718292723816,-1160.7,0.00028766,3]
[329379314,1718292723830,-500.0,0.00028766,3]
[329379315,1718292723868,-635.4,0.00028766,3]
[329379316,1718292723903,-984.58,0.00028766,3]
[329379317,1718292723961,-2101.74,0.00028766,3]
[329379318,1718292724008,-529.09,0.00028766,3]
[329379319,1718292724022,-1065.38,0.00028766,3]
[329379320,1718292724066,-2589.34,0.00028766,3]
[329379321,1718292724077,-3405.79,0.00028766,3]
[329379322,1718292724115,-789.36,0.00028766,3]
[329379323,1718292724128,-1078.35,0.00028766,3]
[329379324,1718292724196,-533.02,0.00028766,3]
[329379325,1718292724223,-500.0,0.00028766,3]
[329379326,1718292724285,-590.78,0.00028766,3]
[329379327,1718292724298,-689.43,0.00028766,3]
[329379328,1718292724329,-628.08,0.00028766,3]
[329379329,1718292724341,-731.88,0.00028766,3]
[329379330,1718292724363,-500.0,0.00028766,3]
[329379331,1718292724377,-500.0,0.00028766,3]
[329379332,1718292724388,-539.27,0.00028766,3]
[329379333,1718292724408,-1216.69,0.00028766,3]
[329379334,1718292724426,-800.18,0.00028766,3]
[329379335,1718292724452,-1199.27,0.00028766,3]
[329379336,1718292724482,-1277.74,0.00028766,3]
[329379337,1718292724495,-1138.63,0.00028766,3]
[329379338,1718292724511,-500.0,0.00028766,3]
[329379339,1718292724536,-1415.49,0.00028766,3]
[329379340,1718292724551,-3406.93,0.00028766,3]
[329379341,1718292724562,-1350.88,0.00028766,3]
[329379342,1718292724578,-851.08,0.00028766,3]
[329379343,1718292724605,-947.08,0.00028766,3]
[329379344,1718292724623,-727.33,0.00028766,3]
[329379345,1718292724635,-505.2,0.00028766,3]
[329379346,1718292724645,-719.42,0.00028766,3]
[329379347,1718292724670,-1080.47,0.00028766,3]
[329379348,1718292724681,-2669.88,0.00028767,3]
[329379349,1718292724731,-857.41,0.00028767,3]
[329379350,1718292724758,-1143.43,0.00028767,3]
[329379351,1718292724779,-500.0,0.00028767,3]
[329379352,1718292724828,-1621.77,0.00028767,3]
[329379353,1718292724863,-674.54,0.00028767,3]
[329379354,1718292724875,-500.0,0.00028767,3]
[329379355,1718292724888,-1174.3,0.00028767,3]
[329379356,1718292724918,-500.0,0.00028767,3]
[329379357,1718292724966,-500.0,0.00028767,3]
[329379358,1718292724996,-500.0,0.00028767,3]
[329379359,1718292725027,-1348.57,0.00028767,3]
[329379360,1718292725116,-500.0,0.00028767,3]
[329379361,1718292725160,-500.0,0.00028767,3]
[329379362,1718292725192,-502.75,0.00028767,3]
[329379363,1718292725204,-535.86,0.00028767,3]
[329379364,1718292725259,-1384.42,0.00028767,3]
[329379365,1718292725304,-822.29,0.00028767,3]
[329379366,1718292725326,-521.6,0.00028767,3]
[329379367,1718292725365,-500.0,0.00028767,3]
[329379368,1718292725402,-1073.92,0.00028767,3]
[329379369,1718292725429,-2065.58,0.00028767,3]
[329379370,1718292725450,-500.0,0.00028767,3]
[329379371,1718292725463,-649.62,0.00028767,3]
[329379372,1718292725486,-550.84,0.00028767,3]
[329379373,1718292725510,-500.0,0.00028767,3]
[329379374,1718292725522,-500.0,0.00028767,3]
[329379375,1718292725561,-928.65,0.00028767,3]
[329379376,1718292725571,-502.28,0.00028767,3]
[329379377,1718292725603,-691.98,0.00028767,3]
[329379378,1718292725613,-651.06,0.00028767,3]
[329379379,1718292725641,-500.0,0.00028767,3]
[329379380,1718292725712,-516.01,0.00028767,3]
[329379381,1718292725770,-1917.61,0.00028767,3]
[329379382,1718292725819,-1173.15,0.00028767,3]
[329379383,1718292725833,-160.89664104,0.00028767,3]
[329379384,1718292725863,-500.0,0.00028767,3]
[329379385,1718292725886,-1388.4,0.00028767,3]
[329379386,1718292725913,-719.63,0.00028767,3]
[329379387,1718292725961,-625.63244102,0.00028798,2]
[329379388,1718292725975,-156.17044264,0.00028804,2]
[329379389,1718292726024,-500.0,0.00028844,3]
[329379390,1718292726049,-500.0,0.00028844,3]
[329379391,1718292726093,-500.0,0.00028844,3]
[329379392,1718292726125,-161.81191653,0.00028844,3]
[329379393,1718292726143,-500.0,0.00028844,3]
[329379394,1718292726177,-500.0,0.00028844,3]
[329379395,1718292726200,-500.0,0.00028844,3]
[329379396,1718292726226,-500.0,0.00028844,3]
[329379397,1718292726244,-500.0,0.00028844,3]
[329379398,1718292726256,-500.0,0.00028844,3]
[329379399,1718292726277,-500.0,0.00028844,3]
[329379400,1718292726315,-500.0,0.00028844,3]
[329379401,1718292726335,-500.0,0.00028844,3]
[329379402,1718292726372,-401.10424947,0.00028844,3]
[329379403,1718292726407,-500.0,0.00028844,3]
[329379404,1718292726422,-1306.39,0.00028844,3]
[329379405,1718292726446,-317.72,0.00028844,3]
[329379406,1718292726606,-599.32818897,0.00028844,3]
[329379407,1718292726652,-500.0,0.00028844,3]
[329379408,1718292726663,-527.96926358,0.00028844,3]
[329379409,1718292726700,-500.0,0.00028844,3]
[329379410,1718292726743,-553.675,0.00028844,3]
[329379411,1718292726764,-152.96556497,0.00028889,2]
[329379412,1718292726776,-166.70033266,0.00028897,2]
[329379413,1718292726809,-154.24759554,0.00028918,2]
[329379414,1718292726824,-166.70033267,0.00028988,2]
[329379415,1718292726838,-1803.1735856,0.00029,2]
[329379416,1718292726880,-157.96553432,0.00029024,2]
[329379417,1718292726894,-18087.6193,0.0002903,2]
[329379418,1718292726905,-500.0,0.0002904,3]
[329379419,1718292726917,-500.0,0.0002904,3]
[329379420,1718292726980,-500.0,0.0002904,3]
[329379421,1718292727017,-500.0,0.0002904,3]
[329379422,1718292727041,-154.15,0.0002904,3]
[329379423,1718292727094,-724.51,0.0002904,3]
[329379424,1718292727109,-500.0,0.0002904,3]
[329379425,1718292727139,-500.0,0.0002904,3]
[329379426,1718292727152,-514.8,0.0002904,3]
[329379427,1718292727212,-500.0,0.0002904,3]
[329379428,1718292727226,-820.37,0.0002904,3]
[329379429,1718292727248,-1564.46,0.0002904,3]
[329379430,1718292727312,-1160.7,0.0002904,3]
[329379431,1718292727343,-500.0,0.0002904,3]
[329379432,1718292727360,-635.4,0.0002904,3]
[329379433,1718292727416,-984.58,0.0002904,3]
[329379434,1718292727513,-2101.74,0.0002904,3]
[329379435,1718292727547,-529.09,0.0002904,3]
[329379436,1718292727559,-1065.38,0.0002904,3]
[329379437,1718292727570,-2589.34,0.0002904,3]
[329379438,1718292727585,-3405.79,0.0002904,3]
[329379439,1718292727600,-789.36,0.0002904,3]
[329379440,1718292727611,-1078.35,0.0002904,3]
[329379441,1718292727648,-500.0,0.0002904,3]
[329379442,1718292727660,-590.78,0.0002904,3]
[329379443,1718292727673,-689.43,0.0002904,3]
[329379444,1718292727696,-628.08,0.0002904,3]
[329379445,1718292727722,-731.88,0.0002904,3]
[329379446,1718292727771,-500.0,0.0002904,3]
[329379447,1718292727801,-500.0,0.0002904,3]
[329379448,1718292727846,-539.27,0.0002904,3]
[329379449,1718292727886,-1216.69,0.0002904,3]
[329379450,1718292727902,-800.18,0.0002904,3]
[329379451,1718292727976,-1199.27,0.0002904,3]
[329379452,1718292727993,-1277.74,0.0002904,3]
[329379453,1718292728033,-1138.63,0.0002904,3]
[329379454,1718292728081,-500.0,0.0002904,3]
[329379455,1718292728144,-3406.93,0.0002904,3]
[329379456,1718292728159,-1350.88,0.0002904,3]
[329379457,1718292728184,-851.08,0.0002904,3]
[329379458,1718292728204,-947.08,0.0002904,3]
[329379459,1718292728221,-727.33,0.0002904,3]
[329379460,1718292728253,-505.2,0.0002904,3]
[329379461,1718292728274,-719.42,0.0002904,3]
[329379462,1718292728289,-1080.47,0.0002904,3]
[329379463,1718292728307,-2669.88,0.00029041,3]
[329379464,1718292728323,-857.41,0.00029041,3]
[329379465,1718292728338,-1143.43,0.00029041,3]
[329379466,1718292728351,-284.9750299,0.00029041,3]
[329379467,1718292728364,-1621.77,0.00029041,3]
[329379468,1718292728392,-674.54,0.00029041,3]
[329379469,1718292728407,-566.395338,0.00029041,3]
[329379470,1718292728419,-1174.3,0.00029041,3]
[329379471,1718292728434,-500.0,0.00029041,3]
[329379472,1718292728493,-500.0,0.00029041,3]
[329379473,1718292728516,-1348.57,0.00029041,3]
[329379474,1718292728546,-500.0,0.00029041,3]
[329379475,1718292728577,-500.0,0.00029041,3]
[329379476,1718292728603,-502.75,0.00029041,3]
[329379477,1718292728640,-535.86,0.00029041,3]
[329379478,1718292728654,-1384.42,0.00029041,3]
[329379479,1718292728673,-822.29,0.00029041,3]
[329379480,1718292728719,-521.6,0.00029041,3]
[329379481,1718292728730,-500.0,0.00029041,3]
[329379482,1718292728742,-1073.92,0.00029041,3]
[329379483,1718292728767,-2065.58,0.00029041,3]
[329379484,1718292728800,-500.0,0.00029041,3]
[329379485,1718292728816,-649.62,0.00029041,3]
[329379486,1718292728839,-550.84,0.00029041,3]
[329379487,1718292728870,-500.0,0.00029041,3]
[329379488,1718292728883,-500.0,0.00029041,3]
[329379489,1718292728902,-928.65,0.00029041,3]
[329379490,1718292728924,-502.28,0.00029041,3]
[329379491,1718292728936,-691.98,0.00029041,3]
[329379492,1718292728967,-651.06,0.00029041,3]
[329379493,1718292728984,-500.0,0.00029041,3]
[329379494,1718292729007,-516.01,0.00029041,3]
[329379495,1718292729019,-1917.61,0.00029041,3]
[329379496,1718292729033,-1173.15,0.00029041,3]
[329379497,1718292729045,-500.0,0.00029041,3]
[329379498,1718292729067,-1388.4,0.00029041,3]
[329379499,1718292729083,-719.63,0.00029041,3]
[329379500,1718292729118,-851.39,0.00029041,2]
[329379501,1718292729132,-423.56,0.00029041,2]
[329379502,1718292729203,-851.39,0.00029041,2]
[329379503,1718292729234,-850.4,0.00029041,2]
[329379504,1718292729257,-953.616187,0.00029087,2]
[329379505,1718292729272,-385.056803,0.00029087,2]
[329379506,1718292729287,-476.808093,0.00029087,2]
[329379507,1718292729300,-770.113606,0.00029087,2]
[329379508,1718292729314,-990.123474,0.00029087,2]
[329379509,1718292729330,-770.113606,0.00029087,2]
[329379510,1718292729343,-172.114938,0.00029087,2]
[329379511,1718292729384,-167.706844,0.00029087,2]
[329379512,1718292729444,-190.93315,0.00029087,2]
[329379513,1718292729464,-323.86358249,0.00029118,3]
[329379514,1718292729479,-500.0,0.00029118,3]
[329379515,1718292729499,-500.0,0.00029118,3]
[329379516,1718292729522,-500.0,0.00029118,3]
[329379517,1718292729548,-478.43044983,0.00029118,3]
[329379518,1718292729559,-500.0,0.00029118,3]
[329379519,1718292729570,-425.91240615,0.00029118,3]
[329379520,1718292729582,-644.9695069,0.00029118,3]
[329379521,1718292729597,-500.0,0.00029118,3]
[329379522,1718292729614,-341.4,0.00029118,3]
[329379523,1718292729626,-304.78,0.00029118,3]
[329379524,1718292729638,-500.0,0.00029118,3]
[329379525,1718292729652,-500.0,0.00029118,3]
[329379526,1718292729680,-1306.39,0.00029118,3]
[329379527,1718292729695,-500.0,0.00029118,3]
[329379528,1718292729710,-387.14,0.00029118,3]
[329379529,1718292729754,-4080.0,0.00029123,4]
[329379530,1718292729780,-154.24759554,0.00029152,2]
[329379531,1718292729824,-178.21970292,0.0002917,2]
[329379532,1718292729839,-151.05,0.00029178,2]
[329379533,1718292729860,-150.0,0.00029178,2]
[329379534,1718292729873,-150.0,0.00029178,2]
[329379535,1718292729890,-845.12,0.00029178,2]
[329379536,1718292729902,-152.63,0.00029178,2]
[329379537,1718292729914,-526.76,0.00029178,2]
[329379538,1718292729938,-300.0,0.00029178,2]
[329379539,1718292729968,-150.0,0.00029178,2]
[329379540,1718292729982,-333.96,0.00029178,2]
[329379541,1718292729995,-306.68,0.00029178,2]
[329379542,1718292730007,-526.76,0.00029178,2]
[329379543,1718292730035,-524.69,0.00029178,2]
[329379544,1718292730069,-152.1899555,0.00029214,2]
[329379545,1718292730080,-500.0,0.00029218,2]
[329379546,1718292730101,-700.0,0.00029218,2]
[329379547,1718292730115,-2800.0,0.00029218,2]
[329379548,1718292730131,-150.59,0.00029224,2]
[329379549,1718292730142,-157.96553432,0.00029239,2]
[329379550,1718292730173,-1331.03925421,0.00029245,15]
[329379551,1718292730204,-165.47442074,0.00029267,2]
[329379552,1718292730217,-178.21970292,0.00029289,2]
[329379553,1718292730227,-1000.0,0.00029291,2]
[329379554,1718292730240,-205.2720956,0.00029314,3]
[329379555,1718292730251,-500.0,0.00029314,3]
[329379556,1718292730261,-500.0,0.00029314,3]
[329379557,1718292730298,-257.52181836,0.00029314,3]
[329379558,1718292730328,-154.15,0.00029314,3]
[329379559,1718292730357,-724.51,0.00029314,3]
[329379560,1718292730385,-500.0,0.00029314,3]
[329379561,1718292730400,-500.0,0.00029314,3]
[329379562,1718292730434,-514.8,0.00029314,3]
[329379563,1718292730462,-500.0,0.00029314,3]
[329379564,1718292730488,-820.37,0.00029314,3]
[329379565,1718292730499,-1564.46,0.00029314,3]
[329379566,1718292730515,-1160.7,0.00029314,3]
[329379567,1718292730569,-500.0,0.00029314,3]
[329379568,1718292730599,-635.4,0.00029314,3]
[329379569,1718292730613,-984.58,0.00029314,3]
[329379570,1718292730625,-2101.74,0.00029314,3]
[329379571,1718292730637,-529.09,0.00029314,3]
[329379572,1718292730678,-1065.38,0.00029314,3]
[329379573,1718292730696,-2589.34,0.00029314,3]
[329379574,1718292730720,-3405.79,0.00029314,3]
[329379575,1718292730736,-789.36,0.00029314,3]
[329379576,1718292730758,-1078.35,0.00029314,3]
[329379577,1718292730781,-500.0,0.00029314,3]
[329379578,1718292730792,-590.78,0.00029314,3]
[329379579,1718292730811,-689.43,0.00029314,3]
[329379580,1718292730832,-628.08,0.00029314,3]
[329379581,1718292730847,-731.88,0.00029314,3]
[329379582,1718292730867,-500.0,0.00029314,3]
[329379583,1718292730883,-500.0,0.00029314,3]
[329379584,1718292730921,-539.27,0.00029314,3]
[329379585,1718292730934,-1216.69,0.00029314,3]
[329379586,1718292730973,-800.18,0.00029314,3]
[329379587,1718292730990,-1199.27,0.00029314,3]
[329379588,1718292731004,-1277.74,0.00029314,3]
[329379589,1718292731040,-1138.63,0.00029314,3]
[329379590,1718292731070,-235.83,0.00029314,3]
[329379591,1718292731083,-3406.93,0.00029314,3]
[329379592,1718292731108,-1350.88,0.00029314,3]
[329379593,1718292731128,-851.08,0.00029314,3]
[329379594,1718292731150,-947.08,0.00029314,3]
[329379595,1718292731178,-727.33,0.00029314,3]
[329379596,1718292731196,-505.2,0.00029314,3]
[329379597,1718292731211,-719.42,0.00029314,3]
[329379598,1718292731236,-1080.47,0.00029314,3]
[329379599,1718292731250,-2669.88,0.00029315,3]
[329379600,1718292731277,-857.41,0.00029315,3]
[329379601,1718292731319,-1143.43,0.00029315,3]
[329379602,1718292731333,-1621.77,0.00029315,3]
[329379603,1718292731346,-674.54,0.00029315,3]
[329379604,1718292731358,-1174.3,0.00029315,3]
[329379605,1718292731383,-500.0,0.00029315,3]
[329379606,1718292731420,-500.0,0.00029315,3]
[329379607,1718292731438,-1348.57,0.00029315,3]
[329379608,1718292731470,-500.0,0.00029315,3]
[329379609,1718292731487,-369.01625451,0.00029315,3]
[329379610,1718292731510,-502.75,0.00029315,3]
[329379611,1718292731542,-535.86,0.00029315,3]
[329379612,1718292731564,-1384.42,0.00029315,3]
[329379613,1718292731584,-822.29,0.00029315,3]
[329379614,1718292731597,-521.6,0.00029315,3]
[329379615,1718292731610,-500.0,0.00029315,3]
[329379616,1718292731632,-1073.92,0.00029315,3]
[329379617,1718292731651,-2065.58,0.00029315,3]
[329379618,1718292731662,-500.0,0.00029315,3]
[329379619,1718292731677,-649.62,0.00029315,3]
[329379620,1718292731692,-550.84,0.00029315,3]
[329379621,1718292731707,-500.0,0.00029315,3]
[329379622,1718292731725,-500.0,0.00029315,3]
[329379623,1718292731738,-928.65,0.00029315,3]
[329379624,1718292731751,-502.28,0.00029315,3]
[329379625,1718292731764,-691.98,0.00029315,3]
[329379626,1718292731840,-651.06,0.00029315,3]
[329379627,1718292731852,-500.0,0.00029315,3]
[329379628,1718292731897,-516.01,0.00029315,3]
[329379629,1718292731919,-1917.61,0.00029315,3]
[329379630,1718292731950,-1173.15,0.00029315,3]
[329379631,1718292732086,-585.37,0.00029315,3]
[329379632,1718292732117,-1388.4,0.00029315,3]
[329379633,1718292732170,-719.63,0.00029315,3]
[329379634,1718292732183,-153.29131971,0.00029339,2]
[329379635,1718292732205,-152.38627793,0.00029352,2]
[329379636,1718292732238,-328.0,0.00029391,2]
[329379637,1718292732258,-500.0,0.00029392,3]
[329379638,1718292732274,-500.0,0.00029392,3]
[329379639,1718292732325,-500.0,0.00029392,3]
[329379640,1718292732361,-500.0,0.00029392,3]
[329379641,1718292732373,-345.18354407,0.00029392,3]
[329379642,1718292732385,-500.0,0.00029392,3]
[329379643,1718292732398,-365.52,0.00029392,3]
[329379644,1718292732423,-1306.39,0.00029392,3]
[329379645,1718292732452,-500.0,0.00029392,3]
[329379646,1718292732490,-156.46370926,0.00029398,4]
[329379647,1718292732509,-151.07408164,0.00029399,2]
[329379648,1718292732527,-1031.90432817,0.000294,2]
[329379649,1718292732548,-1000.0,0.000294,2]
[329379650,1718292732575,-178.21970292,0.00029432,2]
[329379651,1718292732587,-362.25,0.00029452,2]
[329379652,1718292732604,-178.21970292,0.00029453,2]
[329379653,1718292732617,-178.21970292,0.00029491,2]
[329379654,1718292732632,-1000.0,0.000295,2]
[329379655,1718292732648,-151.28937961,0.00029514,2]
[329379656,1718292732668,-158.58510325,0.0002952,2]
[329379657,1718292732681,-500.0,0.00029588,3]
[329379658,1718292732700,-500.0,0.00029588,3]
[329379659,1718292732718,-154.15,0.00029588,3]
[329379660,1718292732765,-724.51,0.00029588,3]
[329379661,1718292732785,-500.0,0.00029588,3]
[329379662,1718292732809,-500.0,0.00029588,3]
[329379663,1718292732833,-514.8,0.00029588,3]
[329379664,1718292732861,-500.0,0.00029588,3]
[329379665,1718292732878,-820.37,0.00029588,3]
[329379666,1718292732897,-1564.46,0.00029588,3]
[329379667,1718292732908,-1160.7,0.00029588,3]
[329379668,1718292732923,-500.0,0.00029588,3]
[329379669,1718292732999,-635.4,0.00029588,3]
[329379670,1718292733042,-984.58,0.00029588,3]
[329379671,1718292733061,-2101.74,0.00029588,3]
[329379672,1718292733096,-529.09,0.00029588,3]
[329379673,1718292733112,-1065.38,0.00029588,3]
[329379674,1718292733128,-2589.34,0.00029588,3]
[329379675,1718292733143,-3405.79,0.00029588,3]
[329379676,1718292733155,-789.36,0.00029588,3]
[329379677,1718292733209,-1078.35,0.00029588,3]